fUSD/lending_fUSD_20260415
["ID","MTS","AMOUNT","RATE_DAILY","PERIOD"]
[420526193,1776245435410,-720.2540649,0.000116,2]
[420526194,1776245435424,-45988.25123528,0.00011667,2]
[420526195,1776245435438,-1013.88558847,0.00011668,2]
[420526196,1776245435452,-500.0,0.00011671,2]
[420526197,1776245435466,-200.0,0.00011671,2]
[420526198,1776245435476,-500.0,0.00011671,2]
[420526199,1776245435490,-500.0,0.00011671,2]
[420526200,1776245435501,-500.0,0.00011671,2]
[420526201,1776245435515,-500.0,0.00011671,2]
[420526202,1776245435525,-153.8774472,0.00011671,2]
[420526203,1776245435551,-152.97726268,0.00011671,2]
[420526204,1776245435562,-153.72951698,0.00011671,2]
[420526205,1776245435573,-500.0,0.00011673,2]
[420526206,1776245435583,-160.05213198,0.00011673,2]
[420526207,1776245435598,-500.0,0.00011673,2]
[420526208,1776245435608,-500.0,0.00011673,2]
[420526209,1776245435621,-500.0,0.00011673,2]
[420526210,1776245435634,-311.88887855,0.00011673,2]
[420526211,1776245435647,-500.0,0.00011673,2]
[420526212,1776245435661,-500.0,0.00011673,2]
[420526213,1776245435672,-500.0,0.00011673,2]
[420526214,1776245435686,-500.76221007,0.00011673,2]
[420526215,1776245435697,-500.0,0.00011673,2]
[420526216,1776245435713,-365.77685545,0.00011673,2]
[420526217,1776245435725,-503.82715109,0.00011673,2]
[420526218,1776245435762,-634.57042281,0.00011673,2]
[420526219,1776245435774,-500.0,0.00011673,2]
[420526220,1776245435785,-4494.32349249,0.00011677,2]
[420526221,1776245435797,-500.0,0.00011677,2]
[420526222,1776245435809,-300.0,0.00011677,2]
[420526223,1776245435823,-300.0,0.00011677,2]
[420526224,1776245435834,-381.96412987,0.00011677,2]
[420526225,1776245435846,-1008.81748156,0.00011677,3]
[420526226,1776245435858,-250.0,0.00011677,2]
[420526227,1776245435868,-229172.25975082,0.00011678,2]
[420526228,1776245435912,-356381.521,0.00011678,2]
[420526229,1776245435926,-30777.73237934,0.00011678,2]
[420526230,1776245435954,-3440.12665687,0.00011678,2]
[420526231,1776245435968,-402.11421521,0.00011678,2]
[420526232,1776245435986,-2168.09710004,0.00011678,2]
[420526233,1776245436006,-374.94758386,0.00011678,2]
[420526234,1776245436020,-5000.00113981,0.00011678,2]
[420526235,1776245436042,-872283.20017405,0.00011678,2]
[420526236,1776245436052,-150.0,0.000117,2]
[420526237,1776245436063,-500.0,0.00011951,2]
[420526238,1776245436073,-4002.0,0.00012,5]
[420526239,1776245436086,-7919.81308886,0.00012078,2]
[420526240,1776245436097,-420.0,0.00012087,2]
[420526241,1776245436108,-1680.0,0.00012099,2]
[420526242,1776245436119,-200.0,0.00012219,2]
[420526243,1776245436129,-500.0,0.00012221,2]
[420526244,1776245436140,-500.0,0.00012221,2]
[420526245,1776245436150,-1000.0,0.00012221,2]
[420526246,1776245436161,-166.31,0.00012232,2]
[420526247,1776245436171,-537.55231469,0.00012277,2]
[420526248,1776245436182,-3044.60859877,0.00012426,2]
[420526249,1776245436193,-578.20924308,0.00012516,2]
[420526250,1776245436204,-200.0,0.00012516,2]
[420526251,1776245436214,-1481.23780761,0.00012516,2]
[420526252,1776245436224,-500.0,0.00012516,2]
[420526253,1776245436234,-500.0,0.00012516,2]
[420526254,1776245436245,-500.0,0.00012516,2]
[420526255,1776245436255,-500.0,0.00012516,2]
[420526256,1776245436265,-151.0,0.00012516,2]
[420526257,1776245436276,-500.0,0.00012516,2]
[420526258,1776245436287,-743.50770149,0.00012516,2]
[420526259,1776245436297,-174.61919141,0.00012516,2]
[420526260,1776245436308,-7919.81308886,0.00012556,2]
[420526261,1776245436319,-185.0,0.00012566,2]
[420526262,1776245436331,-500.0,0.00012571,2]
[420526263,1776245436341,-151.0,0.00012571,2]
[420526264,1776245436354,-500.0,0.00012626,2]
[420526265,1776245436366,-151.0,0.00012626,2]
[420526266,1776245436376,-500.0,0.00012681,2]
[420526267,1776245436390,-151.0,0.00012681,2]
[420526268,1776245436411,-500.0,0.00012736,2]
[420526269,1776245436428,-151.0,0.00012736,2]
[420526270,1776245436452,-1500.0,0.00012768,2]
[420526271,1776245436476,-500.0,0.00012791,2]
[420526272,1776245436508,-151.0,0.00012791,2]
[420526273,1776245436530,-500.0,0.00012846,2]
[420526274,1776245436555,-151.0,0.00012846,2]
[420526275,1776245436584,-153.75433783,0.00012856,2]
[420526276,1776245436610,-151.0,0.00012901,2]
[420526277,1776245436634,-151.0,0.00012956,2]
[420526278,1776245436661,-191.4707,0.00013,2]
[420526279,1776245436711,-250.0,0.00013,2]
[420526280,1776245436743,-151.0,0.00013011,2]
[420526281,1776245436798,-7919.81308886,0.00013033,2]
[420526282,1776245436875,-171.8,0.00013034,2]
[420526283,1776245436993,-771.01748645,0.00013064,2]
[420526284,1776245437078,-181.08010149,0.00013064,2]
[420526285,1776245437128,-151.0,0.00013066,2]
[420526286,1776245437165,-1233.58,0.00013146,2]
[420526287,1776245437204,-2351.0,0.00013309,2]
[420526288,1776245437218,-501.98527228,0.00013316,2]
[420526289,1776245437246,-2000.0,0.00013409,2]
[420526290,1776245437268,-3240.0,0.00013425,2]
[420526291,1776245437279,-2019.2583,0.00013444,2]
[420526292,1776245437294,-508.0,0.000135,2]
[420526293,1776245437319,-16220.01617262,0.00013511,2]
[420526294,1776245437331,-7919.81308886,0.00013511,2]
[420526295,1776245437352,-160.0,0.00013693,2]
[420526296,1776245437364,-500.0,0.00013698,2]
[420526297,1776245437377,-628.99,0.00013698,2]
[420526298,1776245437393,-628.99,0.00013698,2]
[420526299,1776245437408,-628.99,0.00013698,2]
[420526300,1776245437418,-628.99,0.00013698,2]
[420526301,1776245437434,-628.99,0.00013698,2]
[420526302,1776245437448,-628.99,0.00013698,2]
[420526303,1776245437460,-617.94,0.00013698,2]
[420526304,1776245437474,-617.94,0.00013698,2]
[420526305,1776245437488,-617.94,0.00013698,2]
[420526306,1776245437501,-617.94,0.00013698,2]
[420526307,1776245437517,-617.94,0.00013698,2]
[420526308,1776245437531,-617.94,0.00013698,2]
[420526312,1776245438035,-308.65,0.00013698,2]
[420526313,1776245438164,-500.0,0.00013698,2]
[420526315,1776245438245,-500.0,0.00013698,2]
[420526317,1776245438308,-500.0,0.00013698,2]
[420526318,1776245438329,-500.0,0.00013698,2]
[420526319,1776245438349,-500.0,0.00013698,2]
[420526320,1776245438365,-500.0,0.00013698,2]
[420526321,1776245438393,-500.0,0.00013698,2]
[420526322,1776245438406,-500.0,0.00013698,2]
[420526323,1776245438419,-500.0,0.00013698,2]
[420526324,1776245438434,-178.91537091,0.00013698,2]
[420526325,1776245438445,-500.0,0.00013698,2]
[420526326,1776245438461,-500.0,0.00013698,2]
[420526327,1776245438474,-500.0,0.00013698,2]
[420526328,1776245438488,-500.0,0.00013698,2]
[420526329,1776245438499,-500.0,0.00013698,2]
[420526330,1776245438513,-500.0,0.00013698,2]
[420526331,1776245438528,-500.0,0.00013698,2]
[420526332,1776245438539,-500.0,0.00013698,2]
[420526333,1776245438554,-500.0,0.00013698,2]
[420526334,1776245438570,-500.0,0.00013698,2]
[420526335,1776245438583,-500.0,0.00013698,2]
[420526336,1776245438598,-500.0,0.00013698,2]
[420526337,1776245438614,-217.56870953,0.00013698,2]
[420526338,1776245438625,-500.0,0.00013698,2]
[420526339,1776245438642,-500.0,0.00013698,2]
[420526340,1776245438661,-166.66,0.00013699,2]
[420526341,1776245438678,-823.45,0.00013699,2]
[420526342,1776245438703,-1439.0,0.00013699,2]
[420526343,1776245438714,-720.2540649,0.0001375,2]
[420526344,1776245438743,-943.0,0.00013754,5]
[420526345,1776245438764,-750.0,0.00013754,5]
[420526346,1776245438807,-1265.0,0.00013802,2]
[420526347,1776245438841,-1218.0,0.00013802,2]
[420526349,1776245438864,-926.0,0.00013802,2]
[420526351,1776245438885,-1348.0,0.00013802,2]
[420526353,1776245438909,-6027.0,0.00013802,2]
[420526355,1776245438937,-166.66,0.00013836,2]
[420526357,1776245438958,-414.0,0.00013919,2]
[420526359,1776245438997,-414.0,0.00013922,2]
[420526363,1776245439019,-150.0,0.00013961,2]
[420526367,1776245439055,-308.65,0.00013972,2]
[420526369,1776245439091,-166.66,0.00013973,2]
[420526371,1776245439127,-16220.01617262,0.00013989,2]
[420526373,1776245439140,-7919.81308886,0.00013989,2]
[420526374,1776245439163,-294.217267,0.00014,2]
[420526375,1776245439178,-25122.0056,0.00014033,2]
[420526376,1776245439199,-1000.0,0.00014033,2]
[420526377,1776245439215,-532.88678202,0.00014044,2]
[420526378,1776245439231,-414.0,0.00014058,2]
[420526379,1776245439285,-166.66,0.0001411,2]
[420526380,1776245439307,-414.0,0.00014176,2]
[420526381,1776245439330,-190.599132,0.00014177,2]
[420526382,1776245439351,-212.654459,0.00014177,7]
[420526383,1776245439369,-164.968308,0.00014177,7]
[420526384,1776245439391,-231.123871,0.00014177,2]
[420526385,1776245439408,-179.296094,0.00014177,2]
[420526386,1776245439431,-175.368105,0.00014177,7]
[420526387,1776245439453,-198.892874,0.00014177,7]
[420526388,1776245439474,-414.0,0.00014185,2]
[420526389,1776245439491,-244.407,0.000142,2]
[420526390,1776245439509,-414.0,0.00014204,2]
[420526391,1776245439523,-308.65,0.00014246,2]
[420526392,1776245439537,-166.66,0.00014247,2]
[420526393,1776245439552,-1439.0,0.00014247,2]
[420526394,1776245439565,-166.31,0.00014251,2]
[420526395,1776245439577,-414.0,0.0001427,2]
[420526396,1776245439589,-414.0,0.00014351,2]
[420526397,1776245439606,-166.66,0.00014384,2]
[420526398,1776245439617,-823.45,0.00014384,2]
[420526399,1776245439629,-414.0,0.00014402,2]
[420526400,1776245439640,-414.0,0.00014438,2]
[420526401,1776245439657,-500.0,0.00014466,2]
[420526402,1776245439669,-16220.01617262,0.00014467,2]
[420526403,1776245439690,-7919.81308886,0.00014467,2]
[420526404,1776245439702,-414.0,0.00014511,2]
[420526405,1776245439713,-308.65,0.0001452,2]
[420526406,1776245439725,-800.0,0.00014582,2]
[420526407,1776245439739,-1600.0,0.00014582,2]
[420526408,1776245439752,-1762.0,0.0001464,2]
[420526409,1776245439763,-414.0,0.00014706,2]
[420526410,1776245439775,-414.0,0.00014743,2]
[420526411,1776245439788,-414.0,0.00014747,2]
[420526412,1776245439807,-208.84573066,0.00014774,4]
[420526413,1776245439819,-500.0,0.00014774,4]
[420526414,1776245439836,-150.0,0.00014774,4]
[420526415,1776245439850,-500.0,0.00014774,4]
[420526416,1776245439862,-150.0,0.00014774,4]
[420526417,1776245439883,-500.0,0.00014774,4]
[420526418,1776245439900,-150.0,0.00014774,4]
[420526419,1776245439921,-500.0,0.00014774,4]
[420526420,1776245439940,-150.0,0.00014774,4]
[420526421,1776245439964,-500.0,0.00014774,4]
[420526422,1776245439985,-185.3934498,0.00014774,4]
[420526423,1776245440008,-500.0,0.00014774,4]
[420526424,1776245440034,-500.0,0.00014774,4]
[420526425,1776245440055,-597.23385709,0.00014774,4]
[420526426,1776245440079,-150.0,0.00014774,4]
[420526429,1776245440099,-150.0,0.00014774,4]
[420526431,1776245440125,-150.0,0.00014774,4]
[420526432,1776245440143,-150.0,0.00014774,4]
[420526433,1776245440174,-150.0,0.00014774,4]
[420526434,1776245440211,-250.0,0.00014774,4]
[420526435,1776245440223,-150.0,0.00014774,4]
[420526436,1776245440244,-150.0,0.00014774,4]
[420526437,1776245440261,-150.0,0.00014774,4]
[420526438,1776245440281,-150.0,0.00014774,4]
[420526439,1776245440307,-275.69367728,0.00014774,4]
[420526440,1776245440328,-893.0,0.00014774,4]
[420526441,1776245440351,-893.0,0.00014774,4]
[420526442,1776245440371,-167.29784249,0.00014774,4]
[420526443,1776245440393,-893.0,0.00014774,4]
[420526444,1776245440411,-893.0,0.00014774,4]
[420526445,1776245440434,-893.0,0.00014774,4]
[420526446,1776245440454,-893.0,0.00014774,4]
[420526447,1776245440471,-893.0,0.00014774,4]
[420526448,1776245440482,-893.0,0.00014774,4]
[420526449,1776245440497,-893.0,0.00014774,4]
[420526450,1776245440513,-150.0,0.00014774,4]
[420526451,1776245440525,-893.0,0.00014774,4]
[420526452,1776245440539,-150.0,0.00014774,4]
[420526453,1776245440554,-893.0,0.00014774,4]
[420526454,1776245440568,-150.0,0.00014774,4]
[420526455,1776245440581,-893.0,0.00014774,4]
[420526456,1776245440593,-150.0,0.00014774,4]
[420526457,1776245440603,-893.0,0.00014774,4]
[420526458,1776245440614,-150.0,0.00014774,4]
[420526459,1776245440625,-893.0,0.00014774,4]
[420526460,1776245440636,-250.0,0.00014774,4]
[420526461,1776245440647,-893.0,0.00014774,4]
[420526462,1776245440658,-893.0,0.00014774,4]
[420526463,1776245440669,-893.0,0.00014774,4]
[420526464,1776245440681,-893.0,0.00014774,4]
[420526465,1776245440691,-893.0,0.00014774,4]
[420526466,1776245440702,-893.0,0.00014774,4]
[420526467,1776245440713,-893.0,0.00014774,4]
[420526468,1776245440724,-893.0,0.00014774,4]
[420526469,1776245440734,-893.0,0.00014774,4]
[420526470,1776245440744,-898.67329773,0.00014774,4]
[420526471,1776245440754,-150.0,0.00014774,4]
[420526472,1776245440765,-500.0,0.00014774,4]
[420526473,1776245440775,-150.0,0.00014774,4]
[420526474,1776245440786,-500.0,0.00014774,4]
[420526475,1776245440796,-260.42537861,0.00014774,4]
[420526476,1776245440808,-500.0,0.00014774,4]
[420526477,1776245440819,-150.0,0.00014774,2]
[420526478,1776245440830,-500.0,0.00014774,4]
[420526479,1776245440840,-288.041374,0.00014774,4]
[420526480,1776245440853,-500.0,0.00014774,4]
[420526481,1776245440864,-500.0,0.00014774,4]
[420526482,1776245440874,-500.0,0.00014774,4]
[420526483,1776245440885,-500.0,0.00014774,4]
[420526484,1776245440896,-250.46160744,0.00014774,4]
[420526485,1776245440905,-150.0,0.00014774,2]
[420526486,1776245440916,-500.0,0.00014774,4]
[420526487,1776245440926,-500.0,0.00014774,4]
[420526488,1776245440940,-500.0,0.00014774,4]
[420526489,1776245440953,-500.0,0.00014774,4]
[420526490,1776245440967,-500.0,0.00014774,4]
[420526491,1776245440977,-465.940852,0.00014774,4]
[420526492,1776245440990,-308.66,0.00014794,2]
[420526494,1776245441001,-1439.0,0.00014795,2]
[420526495,1776245441015,-318.8342967,0.00014822,2]
[420526496,1776245441025,-1142.13920846,0.00014917,2]
[420526497,1776245441038,-414.0,0.00014922,2]
[420526498,1776245441048,-414.0,0.00014932,2]
[420526499,1776245441060,-255.91887836,0.00014934,2]
[420526500,1776245441071,-151.0,0.00014944,2]
[420526501,1776245441083,-151.0,0.00014944,2]
[420526502,1776245441095,-151.0,0.00014944,2]
[420526503,1776245441106,-151.0,0.00014944,2]
[420526504,1776245441118,-151.0,0.00014944,2]
[420526505,1776245441129,-151.0,0.00014944,2]
[420526506,1776245441139,-16220.01617262,0.00014944,2]
[420526507,1776245441150,-7919.81308886,0.00014944,2]
[420526508,1776245441160,-265.51178233,0.00014984,2]
[420526509,1776245441175,-1172.75376525,0.00014994,2]
[420526510,1776245441186,-300.0,0.00015,2]
[420526511,1776245441196,-414.0,0.00015007,2]
[420526512,1776245441207,-414.0,0.00015045,2]
[420526513,1776245441221,-414.0,0.00015067,2]
[420526514,1776245441231,-319.56,0.00015068,2]
[420526515,1776245441241,-823.45,0.00015068,2]
[420526516,1776245441254,-414.0,0.00015078,2]
[420526517,1776245441265,-508.0,0.00015083,3]
[420526518,1776245441277,-2000.0,0.00015085,2]
[420526519,1776245441287,-10000.0,0.000151,2]
[420526520,1776245441297,-204.12188055,0.00015143,7]
[420526521,1776245441309,-1111.11111,0.0001515,2]
[420526522,1776245441321,-1111.11111,0.0001515,2]
[420526523,1776245441331,-300.0,0.00015156,2]
[420526524,1776245441341,-300.0,0.00015156,2]
[420526525,1776245441353,-200.0,0.00015156,2]
[420526526,1776245441364,-1111.11111,0.0001516,2]
[420526527,1776245441377,-164.7756,0.0001517,2]
[420526528,1776245441388,-500.0,0.00015175,2]
[420526529,1776245441400,-500.0,0.00015175,2]
[420526530,1776245441413,-500.0,0.00015175,2]
[420526531,1776245441429,-500.0,0.00015175,2]
[420526532,1776245441439,-500.0,0.00015175,2]
[420526533,1776245441451,-500.0,0.00015175,2]
[420526534,1776245441470,-500.0,0.00015175,2]
[420526535,1776245441482,-500.0,0.00015175,2]
[420526536,1776245441498,-200.0,0.00015176,2]
[420526537,1776245441514,-8310.0,0.00015178,2]
[420526538,1776245441530,-414.0,0.00015186,2]
[420526539,1776245441547,-150.0,0.00015199,2]
[420526540,1776245441573,-150.0,0.00015199,2]
[420526541,1776245441591,-150.0,0.00015199,2]
[420526542,1776245441615,-150.0,0.00015199,2]
[420526543,1776245441632,-628.99,0.00015199,2]
[420526544,1776245441664,-617.94,0.00015199,2]
[420526545,1776245441702,-500.0,0.00015199,2]
[420526546,1776245441745,-293.44484461,0.000152,2]
[420526547,1776245441826,-500.0,0.000152,3]
[420526548,1776245441902,-500.0,0.000152,3]
[420526549,1776245442001,-6325.42824628,0.000152,2]
[420526550,1776245442070,-383.97474746,0.000152,2]
[420526551,1776245442095,-1194.11388434,0.000152,2]
[420526552,1776245442130,-23471.49785946,0.000152,2]
[420526553,1776245442150,-842.36754228,0.000152,2]
[420526554,1776245442174,-171.8,0.00015207,2]
[420526555,1776245442192,-273.75684487,0.00015212,2]
[420526556,1776245442214,-358.120935,0.0001522,2]
[420526557,1776245442229,-358.120935,0.0001522,2]
[420526558,1776245442246,-358.120935,0.0001522,2]
[420526559,1776245442261,-358.120935,0.0001522,2]
[420526560,1776245442275,-414.0,0.00015239,2]
[420526561,1776245442294,-599.60298507,0.00015255,2]
[420526562,1776245442310,-179.57876062,0.00015273,2]
[420526563,1776245442332,-500.0,0.00015273,2]
[420526564,1776245442355,-502.22791298,0.00015273,2]
[420526565,1776245442369,-500.0,0.00015273,2]
[420526566,1776245442384,-500.0,0.00015273,2]
[420526567,1776245442403,-500.0,0.00015273,2]
[420526568,1776245442414,-500.0,0.00015273,2]
[420526569,1776245442429,-500.0,0.00015273,2]
[420526570,1776245442446,-500.0,0.00015273,2]
[420526571,1776245442458,-500.0,0.00015273,2]
[420526572,1776245442471,-501.41375743,0.00015273,2]
[420526573,1776245442483,-500.8615667,0.00015273,2]
[420526574,1776245442496,-500.0,0.00015273,2]
[420526575,1776245442509,-500.0,0.00015273,2]
[420526576,1776245442520,-500.0,0.00015273,2]
[420526577,1776245442530,-500.0,0.00015273,2]
[420526578,1776245442542,-500.0,0.00015273,2]
[420526579,1776245442553,-500.0,0.00015273,2]
[420526580,1776245442563,-204.12188055,0.00015273,2]
[420526581,1776245442574,-1013.88558847,0.0001529,2]
[420526582,1776245442586,-2341.7092558,0.00015292,2]
[420526583,1776245442597,-185.2725,0.00015292,2]
[420526584,1776245442607,-194.3894123,0.00015292,2]
[420526585,1776245442618,-151.0,0.00015296,2]
[420526586,1776245442630,-151.0,0.00015297,2]
[420526587,1776245442641,-158.205,0.00015297,2]
[420526588,1776245442652,-160.71572469,0.00015298,2]
[420526589,1776245442662,-300.0,0.00015298,2]
[420526590,1776245442674,-300.0,0.00015298,2]
[420526591,1776245442687,-500.0,0.00015298,2]
[420526592,1776245442697,-500.0,0.00015298,2]
[420526593,1776245442708,-504.03067521,0.00015298,2]
[420526594,1776245442720,-628.99,0.00015298,2]
[420526595,1776245442732,-500.0,0.00015298,2]
[420526596,1776245442742,-500.0,0.00015298,2]
[420526598,1776245442753,-458.14710892,0.00015298,2]
[420526599,1776245442768,-617.94,0.00015298,2]
[420526600,1776245442778,-529.98307748,0.00015298,2]
[420526601,1776245442788,-1111.11111,0.00015298,2]
[420526602,1776245442802,-1111.11111,0.00015298,2]
[420526603,1776245442814,-1111.11112,0.00015298,2]
[420526604,1776245442824,-500.0,0.00015298,2]
[420526605,1776245442834,-500.0,0.00015298,2]
[420526606,1776245442850,-147100.82175631,0.00015299,4]
[420526607,1776245442861,-299.999999,0.00015299,2]
[420526609,1776245442872,-5800.0,0.00015299,2]
[420526611,1776245442887,-25000.0,0.00015299,3]
[420526613,1776245442897,-25000.0,0.00015299,3]
[420526614,1776245442909,-5800.0,0.00015299,2]
[420526618,1776245442921,-15964.4993956,0.00015299,3]
[420526621,1776245442946,-556.42285747,0.00015299,3]
[420526639,1776245447578,-500.0,0.00011677,2]
[420526640,1776245447588,-500.0,0.00011677,2]
[420526641,1776245447598,-500.0,0.00011677,2]
[420526642,1776245447608,-500.0,0.00011677,2]
[420526643,1776245447618,-500.0,0.00011677,2]
[420526644,1776245447627,-500.0,0.00011677,2]
[420526645,1776245447637,-469.7027034,0.00011677,2]
[420526646,1776245447650,-30.2972966,0.00011677,2]
[420526647,1776245447660,-500.0,0.00011677,2]
[420526648,1776245447669,-482.57603382,0.00011677,2]
[420526649,1776245447683,-17.42396618,0.00011677,2]
[420526650,1776245447693,-500.0,0.00011677,2]
[420526651,1776245447704,-62.81392956,0.00011677,2]
[420526652,1776245447765,-437.18607044,0.00011677,2]
[420526653,1776245447777,-500.0,0.00011677,2]
[420526654,1776245447801,-316.76073892,0.00011677,2]
[420526655,1776245447812,-500.0,0.00011677,2]
[420526656,1776245447834,-500.0,0.00011677,2]
[420526657,1776245447849,-500.0,0.00011677,2]
[420526658,1776245447862,-500.0,0.00011677,2]
[420526659,1776245447890,-500.0,0.00011677,2]
[420526660,1776245447901,-500.0,0.00011677,2]
[420526661,1776245447920,-500.0,0.00011677,2]
[420526662,1776245447937,-500.0,0.00011677,2]
[420526663,1776245447948,-500.0,0.00011677,2]
[420526664,1776245447973,-500.0,0.00011677,2]
[420526665,1776245447984,-35.78981569,0.00011677,2]
[420526666,1776245448073,-464.21018431,0.00011677,2]
[420526667,1776245448086,-500.0,0.00011677,2]
[420526668,1776245448110,-500.0,0.00011677,2]
[420526669,1776245448126,-226.49166005,0.00011677,2]
[420526670,1776245449036,-150.0,0.00011374,2]
[420526671,1776245449047,-160.7155677,0.000116,2]
[420526672,1776245449923,-18.76581163,0.000116,2]
[420526673,1776245449934,-224.93,0.00011674,2]
[420526674,1776245449950,-273.50833995,0.00011677,2]
[420526675,1776245449961,-500.0,0.00011677,2]
[420526676,1776245449974,-500.0,0.00011677,2]
[420526677,1776245449989,-500.0,0.00011677,2]
[420526678,1776245450001,-499.6768094,0.00011677,2]
[420526679,1776245450046,-0.3231906,0.00011677,2]
[420526680,1776245450060,-500.0,0.00011677,2]
[420526681,1776245450075,-131.94412222,0.00011677,2]
[420526682,1776245450538,-368.05587778,0.00011677,2]
[420526683,1776245450557,-500.0,0.00011677,2]
[420526684,1776245450570,-500.0,0.00011677,2]
[420526685,1776245450586,-500.0,0.00011677,2]
[420526686,1776245450602,-500.0,0.00011677,2]
[420526687,1776245450618,-500.0,0.00011677,2]
[420526688,1776245450641,-500.0,0.00011677,2]
[420526689,1776245450655,-500.0,0.00011677,2]
[420526690,1776245450677,-1287.94412222,0.00013663,2]
[420526691,1776245450698,-2238.05587778,0.00013663,2]
[420526692,1776245450715,-24.46170187,0.0001425,2]
[420526693,1776245462284,9000.0,0.000165,30]
[420526719,1776246373222,246.41,8.775e-05,2]
[420526720,1776246632558,-454.0775,0.00010404,2]
[420526721,1776246632577,-187.46,0.0001096,2]
[420526722,1776246632595,-33.8145,0.0001096,2]
[420526723,1776246632610,-153.6555,0.0001096,2]
[420526724,1776246632625,-191.07,0.0001096,2]
[420526725,1776246632641,-183.9149712,0.00011146,2]
[420526726,1776246632657,-171.67995488,0.00011345,2]
[420526727,1776246632672,-150.96367461,0.00011444,2]
[420526728,1776246632866,-149.03632539,0.00011444,2]
[420526729,1776246632884,-4073.23129527,0.00011445,2]
[420526730,1776246632944,-827.19197519,0.00011445,2]
[420526731,1776246632993,-175.92812561,0.00011445,2]
[420526732,1776246633006,-195.0,0.00011445,2]
[420526733,1776246633027,-378.7421737,0.00011578,2]
[420526734,1776246633042,-621.2578263,0.00011578,2]
[420526735,1776246633055,-774.2301018,0.00011996,2]
[420526736,1776246633069,-257.1600719,0.00011997,2]
[420526737,1776246633086,-712.750005,0.00011997,2]
[420526738,1776246633101,-91931.9454142,0.00011997,2]
[420526739,1776246633118,-150.0,0.000121,2]
[420526740,1776246633130,-1000.0,0.000121,2]
[420526741,1776246633142,-1000.0,0.000121,2]
[420526742,1776246633158,-1000.0,0.000121,2]
[420526743,1776246633170,-1000.0,0.000121,2]
[420526744,1776246633183,-1000.0,0.000121,2]
[420526746,1776246633202,-1000.0,0.000121,2]
[420526748,1776246633218,-1000.0,0.000121,2]
[420526750,1776246633231,-1000.0,0.000121,2]
[420526753,1776246633247,-1000.0,0.000121,2]
[420526757,1776246633261,-1000.0,0.000121,2]
[420526760,1776246633274,-1000.0,0.000121,2]
[420526764,1776246633291,-1000.0,0.000121,2]
[420526769,1776246633305,-1000.0,0.000121,2]
[420526771,1776246633318,-150.0,0.0001223,2]
[420526774,1776246633340,-150.0,0.0001223,2]
[420526778,1776246633352,-150.0,0.0001223,2]
[420526780,1776246633364,-150.0,0.0001291,2]
[420526783,1776246633387,-191.4559,0.000133,2]
[420526785,1776246633398,-3050.9197174,0.00013429,2]
[420526787,1776246633412,-2500.0,0.0001349,2]
[420526789,1776246633435,-167.2505284,0.0001349,2]
[420526791,1776246633445,-508.0,0.000135,2]
[420526793,1776246633458,-15647.66523964,0.00013519,2]
[420526794,1776246633481,-796.0759229,0.00013519,2]
[420526795,1776246633493,-4216.95216418,0.00013519,2]
[420526796,1776246633505,-240.0846883,0.00013528,2]
[420526797,1776246633521,-20729.2058938,0.00013529,2]
[420526798,1776246633534,-9003.0,0.00013562,2]